{"text_format":"2","workbook":"xlsx","n_sheets":11,"sheets":["共通","单滤膜相机扫描模式","检测","规程选择","检测信息录入","分析范围设定","物相提取设定","图库模式","颗粒编辑","高度测试","分级模式"],"not_rendered":{"charts":0,"images":0,"macros":0,"external_links":0,"defined_names":4,"comments":10,"pivot_tables":0},"unopened":[],"bounds":{"document_bytes":16777216,"sheet_cells":100000,"run_cost":"one","rows_first":2000,"rows_last":500,"rows_between":2000,"halvings":0,"cell_chars":16384,"cell_head_chars":4096},"cells_cut":0,"cells_raw":0,"read":"whole","date_system":"1900"}

{"sheet":"共通","index":0,"n_rows":14,"n_cols":9,"rows_kept":14,"cut":false,"hidden":false,"merged":[[8,2,8,4],[3,2,3,4],[4,2,4,4],[5,2,5,4],[6,2,6,4],[7,2,7,4],[20,2,20,4],[9,2,9,4],[10,2,10,4],[11,2,11,4],[12,2,12,4],[13,2,13,4],[14,2,14,4],[15,2,15,4],[16,2,16,4],[17,2,17,4],[18,2,18,4],[19,2,19,4],[26,2,26,4],[27,2,27,4],[21,2,21,4],[22,2,22,4],[23,2,23,4],[24,2,24,4],[25,2,25,4]]}
[]
[null,"模块","系统设置","画面","共通","用例数",{"$f":"COUNTA(C5:C28)","v":10},"BUG数",{"$f":"COUNTIF(H5:H28,\"否\")+COUNTIF(H5:H28,\"否→是\")","v":0}]
[]
[null,"序号","测试用例",null,null,"测试日期","测试者","是否通过","备注"]
[null,1,"画面启动无明显卡顿"]
[null,2,"标题栏无图标"]
[null,3,"标题栏显示正确"]
[null,4,"画面初始显示在主显示器屏幕中央"]
[null,5,"画面为固定大小的，无最大化最小化按钮，不可拉动改变画面尺寸"]
[null,6,"画面可改变尺寸大小的，改变画面大小后，画面内项目布局仍整齐合理"]
[null,7,"画面内项目整齐，各项目排列间距均等"]
[null,8,"画面文字无多余、缺失及错误"]
[null,9,"画面初始焦点落在画面左上角第一个可具有焦点的控件上"]
[null,10,"页面Tab键顺序为：先左到右，然后从上至下"]

{"sheet":"单滤膜相机扫描模式","index":1,"n_rows":47,"n_cols":9,"rows_kept":47,"cut":false,"hidden":false,"merged":[[45,3,45,4],[46,3,46,4],[26,3,26,4],[17,3,17,4],[12,3,12,4],[14,3,14,4],[20,3,20,4],[29,3,29,4],[30,3,30,4],[31,3,31,4],[32,3,32,4],[33,3,33,4],[34,3,34,4],[35,3,35,4],[36,3,36,4],[37,3,37,4],[9,3,9,4],[11,3,11,4],[13,3,13,4],[15,3,15,4],[16,3,16,4],[10,3,10,4],[47,3,47,4],[3,3,3,4],[6,3,6,4],[18,3,18,4],[19,3,19,4],[21,3,21,4],[23,3,23,4],[25,3,25,4],[22,3,22,4],[24,3,24,4],[27,3,27,4],[28,3,28,4],[4,3,4,4],[5,3,5,4],[7,3,7,4],[8,3,8,4],[43,3,43,4],[44,3,44,4],[38,3,38,4],[39,3,39,4],[40,3,40,4],[41,3,41,4],[42,3,42,4]]}
[]
[null,"模块","系统设置","画面","通常设置画面","用例数",{"$f":"COUNTA(D5:D48)","v":24},"BUG数",{"$f":"COUNTIF(H5:H48,\"否\")+COUNTIF(H5:H48,\"否→是\")","v":0}]
[]
[null,"序号","测试项","确认内容",null,"测试日期","测试者","是否通过","备注"]
[null,1,"项目概况-项目编号","与项目信息录入画面的项目编号一致"]
[null,2,"项目概况-项目名称","与项目信息录入画面的项目名称一致"]
[null,3,"项目概况-检测日期","当前日期，格式：yyyy年MM月DD日"]
[null,4,"项目概况-部件名称","与项目信息录入画面的零件名称一致"]
[null,5,"项目概况-部件编号","与项目信息录入画面的零件号一致"]
[null,6,"扫描信息-工作方式","单滤膜时显示：单工位"]
[null,7,null,"多滤膜时显示：多工位"]
[null,8,"扫描信息-当前工位","单滤膜时显示：1"]
[null,9,null,"多滤膜时显示：工位号→工位号→工位号，当前正在扫描的工位红色粗体"]
[null,10,"扫描信息-当前场景","正在扫描偏光时显示：偏光"]
[null,11,null,"正在扫描明场时显示：明场"]
[null,12,"扫描信息-检验员","登录当前系统的用户名称"]
[null,13,"扫描信息-扫描用时","当前扫描所用时间，格式：HH:mm:ss"]
[null,14,"预览窗口","偏光扫描时，按规程设置的偏光相机方案，预览当前视场"]
[null,15,null,"明场扫描时，按规程设置的明场相机方案，预览当前视场"]
[null,16,"扫描进展","正确显示当前扫描拍照进度"]
[null,17,null,"行数、列数、重叠率须与规程设置-图片来源的拼图设置一致"]
[null,18,"扫描拍照","偏光扫描时，须按规程设置-图片来源的偏光相机方案来拍照"]
[null,19,null,"偏光扫描时，须按规程设置-图片来源的偏光阴影矫正标准进行阴影矫正"]
[null,20,null,"偏光扫描时，若未勾选偏光阴影矫正，则扫描拍照后不对图片进行阴影矫正"]
[null,21,null,"明场扫描时，须按规程设置-图片来源的明场相机方案来拍照"]
[null,22,null,"明场扫描时，须按规程设置-图片来源的明场阴影矫正标准进行阴影矫正"]
[null,23,null,"明场扫描时，若未勾选明场阴影矫正，则扫描拍照后不对图片进行阴影矫正"]
[null,24]
[null,25,null,"扫描拍照，物镜转盘空位对应倍率与规程设置-图片来源的倍率一致"]
{"$rows_empty":16}
[null,26]
[null,27]

{"sheet":"检测","index":2,"n_rows":23,"n_cols":9,"rows_kept":23,"cut":false,"hidden":false,"merged":[[20,3,20,4],[21,3,21,4],[22,3,22,4],[15,3,15,4],[23,3,23,4],[19,3,19,4],[18,3,18,4],[16,3,16,4],[17,3,17,4],[3,3,3,4],[5,3,5,4],[6,3,6,4],[7,3,7,4],[8,3,8,4],[4,3,4,4],[9,3,9,4],[13,3,13,4],[14,3,14,4],[10,3,10,4],[11,3,11,4],[12,3,12,4]]}
[]
[null,"模块","检测","画面","单滤膜检测画面","用例数",{"$f":"COUNTA(D5:D33)","v":19},"BUG数",{"$f":"COUNTIF(H6:H20,\"否\")+COUNTIF(H6:H20,\"否→是\")","v":0}]
[]
[null,"序号","测试项","确认内容",null,"测试日期","测试者","是否通过","备注"]
[null,1,"单滤膜","弹出规程选择界面"]
[null,2,"图片来源","下拉框选项包括：全部、本地图片、相机扫描、项目图库"]
[null,3,"日期范围","设定检测的时间范围。默认为起始时间当前系统时间减2年，结束时间为当前日期"]
[null,4,"搜索","输入检索关键字，对规程进行模糊查询"]
[null,5,"表格","数据列包括：规程名称、图片来源、创建时间、创建者、说明"]
[null,6,null,"初始默认选择第一行记录"]
[null,7,"选择规程","双击规程记录，选定规程，关闭窗体"]
[null,8,"确定按钮","点击选择规程，关闭窗体"]
[null,9,"取消按钮","取消规程选择，中止检测操作，关闭窗体"]
[null,10,"相机扫描规程","设置模块，通常设置中的“切换物镜转盘提示”为选中状态时，确认检测过程弹出“切换物镜转盘提示”窗体。未选中状态时，不弹出窗体。"]
[null,11,null,"设置模块，通常设置中的“切换偏光明场提示”为选中状态时，确认检测过程弹出“切换偏光明场”提示窗体。未选中状态时，不弹出窗体。"]
[null,12,"检测结果显示","根据设置模块，通常设置中的“检测结果默认显示”中设定的械进行显示"]
[null,13,"停止","中断检测过程，不保存信息"]
[null,14,"分级模式","显示分级检测结果"]
[null,15,"图库模式","显示图库模式的检测结果"]
[null,16,"项目存档","修改“未存档”项目的状态为“已存档”，项目信息无法再对颗粒进行编辑"]
[null,17,"操作结果确认","确认数据库Testing表中的IsSave值为1"]
[null,18,"生成报告","输出检测项目的报告。"]
[null,19,"操作结果确认","弹出报告预览界面"]

{"sheet":"规程选择","index":3,"n_rows":16,"n_cols":9,"rows_kept":16,"cut":false,"hidden":false,"merged":[[3,3,3,4],[4,3,4,4],[5,3,5,4],[6,3,6,4],[7,3,7,4],[15,3,15,4],[8,3,8,4],[10,3,10,4],[11,3,11,4],[12,3,12,4],[13,3,13,4],[14,3,14,4],[9,3,9,4]]}
[]
[null,"模块","检测","画面","规程选择画面","用例数",{"$f":"COUNTA(D5:D16)","v":8},"BUG数",{"$f":"COUNTIF(H5:H16,\"否\")+COUNTIF(H5:H16,\"否→是\")","v":0}]
[]
[null,"序号","测试项","确认内容",null,"测试日期","测试者","是否通过","备注"]
[null,1,"图片来源","下拉框选项包括：全部、本地图片、相机扫描、项目图库"]
[null,2,"日期范围","设定检测的时间范围。默认为起始时间当前系统时间减2年，结束时间为当前日期"]
[null,3,"搜索","输入检索关键字，对规程进行模糊查询"]
[null,4,"表格","数据列包括：规程名称、图片来源、创建时间、创建者、说明"]
[null,5,null,"初始默认选择第一行记录"]
[null,6,"选择规程","双击规程记录，选定规程，关闭窗体"]
[null,7,"确定按钮","点击选择规程，关闭规程选择窗体，弹出“检测信息录入”窗体。"]
[null,8,"取消按钮","取消规程选择，中止检测操作，关闭窗体"]
[null,9]
[null,10]
[null,11]
[null,12]

{"sheet":"检测信息录入","index":4,"n_rows":26,"n_cols":9,"rows_kept":26,"cut":false,"hidden":false,"merged":[[15,3,15,4],[17,3,17,4],[3,3,3,4],[5,3,5,4],[6,3,6,4],[7,3,7,4],[8,3,8,4],[25,3,25,4],[4,3,4,4],[19,3,19,4],[20,3,20,4],[21,3,21,4],[22,3,22,4],[23,3,23,4],[24,3,24,4],[18,3,18,4],[9,3,9,4],[10,3,10,4],[12,3,12,4],[11,3,11,4],[13,3,13,4],[14,3,14,4],[16,3,16,4]]}
[]
[null,"模块","检测","画面","检测信息录入画面","用例数",{"$f":"COUNTA(D5:D26)","v":17},"BUG数",{"$f":"COUNTIF(H6:H26,\"否\")+COUNTIF(H6:H26,\"否→是\")","v":0}]
[]
[null,"序号","测试项","确认内容",null,"测试日期","测试者","是否通过","备注"]
[null,1,"界面","界面信息输入项及布局等与所选择规程中的”信息模板“一致"]
[null,2,"项目名称","必填项。为空时点击确定按钮提示”请输入正确的项目信息_项目名称！“"]
[null,3,"项目编号","自动生成，无法编辑。"]
[null,4,null,"生成规则，普通项目：\"CA_\"+8位的日期+“_\"+3位的流水号。合并项目：\"MA_\"+8位的日期+“_\"+3位的流水号。"]
[null,5,"零件照片","点击弹出”零件图片选择“窗体，双击图片完成选择，关闭弹出窗体。完成图片的选取"]
[null,6,"客户名称","下拉框，数据来源于设置模块中“客户管理”界面设置内容，即数据表Customer中IsDelete值为0的数据"]
[null,7,null,"如下拉框中无可选项，可直接输入"]
[null,8,null,"如果从下拉框选取客户名称，则自动更新“客户电话”及“客户地址”"]
[null,9,"客户电话","客户名称如从下拉框选取的，客户电话应根据客户名称自动显示对应的客户电话，如果在客户信息中有设置的话"]
[null,10,"客户地址","客户名称如从下拉框选取的，客户地址应根据客户名称自动显示对应的客户地址，如果在客户信息中有设置的话"]
[null,11,"零件名称","下拉框，数据来源于设置模块中“零件管理”界面设置内容，即数据表ComponmetPart中IsDelete值为0的数据"]
[null,12,null,"如下拉框中无可选项，可直接输入"]
[null,13,null,"如果从下拉框选取零件名称，则自动更新“零件编号”"]
[null,14,"零件编号","根据零件名称下拉框选项，自动添加。也可手动输入"]
[null,15,"确定按钮","将窗体中的录入项保存到数据库的InfomtionTag表中。关闭检测信息录入窗体。弹出明场图片选择窗体。选择完成后关闭窗体，弹出”偏光图片选择“窗体"]
[null,16,"取消按钮","不保存信息录入项内容，退出检测"]
[null,17,"操作结果确认","确认数据库的InfomtionTag表中，可以看到项目的检测信息"]
[null,18]
[null,19]
[null,20]
[null,21]
[null,22]

{"sheet":"分析范围设定","index":5,"n_rows":24,"n_cols":9,"rows_kept":24,"cut":false,"hidden":false,"merged":[[13,3,13,4],[16,3,16,4],[14,3,14,4],[8,3,8,4],[9,3,9,4],[10,3,10,4],[11,3,11,4],[12,3,12,4],[3,3,3,4],[4,3,4,4],[5,3,5,4],[6,3,6,4],[7,3,7,4],[22,3,22,4],[23,3,23,4],[15,3,15,4],[17,3,17,4],[18,3,18,4],[19,3,19,4],[20,3,20,4],[21,3,21,4]]}
[]
[null,"模块","检测","画面","分析范围设定画面","用例数",{"$f":"COUNTA(D5:D24)","v":14},"BUG数",{"$f":"COUNTIF(H6:H24,\"否\")+COUNTIF(H6:H24,\"否→是\")","v":0}]
[]
[null,"序号","测试项","确认内容",null,"测试日期","测试者","是否通过","备注"]
[null,1,"圆形/矩形","单选项，分析区域形状设置。本地图片，分析范围默认为全幅。"]
[null,2,"分析范围与拼图中心对齐","选中状态下，设定的分析范围与拼图的中心对齐，只能调整分析范围大小，无法调整位置。非选中状态下，分析范围可以在任意位置"]
[null,3,"宽度","分析范围宽度。"]
[null,4,"高度","分析范围高度。"]
[null,5,"左","分析区域位置"]
[null,6,"右","分析区域位置"]
[null,7,"上","分析区域位置"]
[null,8,"下","分析区域位置"]
[null,9,"图片尺寸（像素）","图片的像素尺寸。"]
[null,10,"图片尺寸（微米）","图片的物理尺寸"]
[null,11,"预览区域","参数设定结果预览"]
[null,12,"最大按钮","设定分析范围的与拼图大小相同"]
[null,13,"确定按钮","保存分析范围设定"]
[null,14,"取消按钮","不保存修改，执和所选规程的中分析范围设定值"]
[null,15]
[null,16]
[null,17]
[null,18]
[null,19]
[null,20]

{"sheet":"物相提取设定","index":6,"n_rows":24,"n_cols":9,"rows_kept":24,"cut":false,"hidden":false,"merged":[[21,3,21,4],[22,3,22,4],[23,3,23,4],[6,3,6,4],[5,3,5,4],[17,3,17,4],[8,3,8,4],[9,3,9,4],[18,3,18,4],[19,3,19,4],[20,3,20,4],[11,3,11,4],[12,3,12,4],[13,3,13,4],[14,3,14,4],[15,3,15,4],[16,3,16,4],[3,3,3,4],[4,3,4,4],[7,3,7,4],[10,3,10,4]]}
[]
[null,"模块","检测","画面","物相提取设定画面","用例数",{"$f":"COUNTA(D5:D24)","v":12},"BUG数",{"$f":"COUNTIF(H8:H24,\"否\")+COUNTIF(H8:H24,\"否→是\")","v":0}]
[]
[null,"序号","测试项","确认内容",null,"测试日期","测试者","是否通过","备注"]
[null,1,"界面","与规程设置中“物相提取设定”界面一致。"]
[null,2,null,"选择本地图片规程时，预览区域默认显示选定的检测图片"]
[null,3,null,"选择“相机扫描”规程时，可以通过查看小图的物相提取效果来调整阈值等参数。“本地图片”和“项目图库”无小图查看功能"]
[null,4,"阀值","默认情况下按所选规程中的设定阀值进行二值化、孔洞填充、删除碎屑操作"]
[null,5,"确定按钮","保存分析范围设定，检测按新的物相提取设定值执行"]
[null,6,"取消按钮","不保存修改，执行所选规程的中物相提取设定值"]
[null,7,"操作结果确认","修改灰度区间，确认预览区域二值化结果相应变化"]
[null,8,null,"确认内容切换“孔洞填充”选择状态，预览区域进行了相对应的处理"]
[null,9,null,"确认内容切换“删除碎屑”选择状态，预览区域进行了相对应的处理"]
[null,10,null,"相机扫描规程时，确认选择小图后，预览区域可以看到相应的原图或二值处理后的效果图"]
[null,11,null,"确认“本地图片”和“项目图库”此窗体中显示的为当前图片，无小图查看功能"]
[null,12,null,"确认“相机扫描”规程时，窗体中有有小图选择区域"]
[null,13]
[null,14]
[null,15]
[null,16]
[null,17]
[null,18]
[null,19]
[null,20]

{"sheet":"图库模式","index":7,"n_rows":54,"n_cols":9,"rows_kept":54,"cut":false,"hidden":false,"merged":[[30,3,30,4],[31,3,31,4],[34,3,34,4],[39,3,39,4],[40,3,40,4],[41,3,41,4],[37,3,37,4],[38,3,38,4],[29,3,29,4],[6,3,6,4],[7,3,7,4],[9,3,9,4],[10,3,10,4],[12,3,12,4],[20,3,20,4],[27,3,27,4],[28,3,28,4],[24,3,24,4],[19,3,19,4],[21,3,21,4],[23,3,23,4],[3,3,3,4],[5,3,5,4],[8,3,8,4],[11,3,11,4],[15,3,15,4],[14,3,14,4],[13,3,13,4],[52,3,52,4],[53,3,53,4],[43,3,43,4],[44,3,44,4],[46,3,46,4],[47,3,47,4],[48,3,48,4],[45,3,45,4],[4,3,4,4],[49,3,49,4],[50,3,50,4],[51,3,51,4],[18,3,18,4],[33,3,33,4],[32,3,32,4],[42,3,42,4],[17,3,17,4],[35,3,35,4],[36,3,36,4],[16,3,16,4],[22,3,22,4],[25,3,25,4],[26,3,26,4]]}
[]
[null,"模块","检测","画面","图库模式画面","用例数",{"$f":"COUNTA(D5:D67)","v":50},"BUG数",{"$f":"COUNTIF(H9:H37,\"否\")+COUNTIF(H9:H37,\"否→是\")","v":0}]
[]
[null,"序号","测试项","确认内容",null,"测试日期","测试者","是否通过","备注"]
[null,1,"检测结果显示模式","设置模块中，常规设置中的“检测结果默认显示”的设定值一致。如设定值为“分级模式”则检测完成后自动打开的是“分级模式”，否则自动打开的是“图库模式”"]
[null,2,"颗粒类型","下拉框选项包括：全部、金属、非金属、纤维"]
[null,3,null,"初始默认选项为全部，显示全部颗粒信息。"]
[null,4,"操作结果确认","选择颗粒类型后，缩略图显示区域和分级区域显示只显示对应类型颗粒的信息"]
[null,5,"颗粒级别","下拉框选项包括：B~N。数据源来自规程设置-分级设置表中的“颗粒尺寸级别名称”"]
[null,6,null,"初始默认选项为全部，显示所有分级信息及对应的颗粒图片。"]
[null,7,"操作结果确认","选择颗粒级别后，缩略图显示区域和分级区域显示只显示对应级别的颗粒的信息"]
[null,8,"图片大小","下拉框选项包括：正常、大图、小图"]
[null,9,"操作结果确认","初始默认选项为正常，颗粒图片尺寸按设置模块中，常规设置中的“缩略图默认尺寸”的设定值相同。"]
[null,10,null,"大图：按默认“缩略图默认尺寸”的1.5倍大小显示"]
[null,11,null,"小图：按默认“缩略图默认尺寸”的0.5倍大小显示"]
[null,12,"颗粒幅度","下拉框选项：10、20、30、40、50、60、70、80、90、100。数值越大，颗粒越大"]
[null,13,null,"初始默认值与设置模块中的通用设置中的“颗粒默认幅度比例”的设定值相同"]
[null,14,"操作结果确认","切换选择，颗粒图片显示内容中的颗粒大与点图片比例相应调整"]
[null,15,"排序字段","下拉框选项包括：最大卡规直径，最小卡规直径、面积、最大内切圆直径、等效圆直径，拉伸长度、长宽比、外接矩形高、外接矩形宽"]
[null,16,"操作结果确认","切换排序字段，确认缩略图区域的颗粒图片及分级表中的颗粒排列顺序将按对应字段进行排序显示"]
[null,17,null,"确认表格中的数据按选择字段显示顺序正确"]
[null,18,"降序/升序","单选项。操作完成后，图片预览区域和分级表中的数据，按选择进行排序。"]
[null,19,"缩略图显示区域","每页显示颗粒数量与设置模块中的常规设置中的“每页显示颗粒数量”相同"]
[null,20,"缩略图尺寸","图片尺寸，按设置模块中的常规设置中的“缩略图默认尺寸”相同"]
[null,21,"最小颗粒尺寸","颗粒图片显示的最小颗粒的尺寸。小于该尺寸的颗粒不会显示在缩略图区域。数值与设置模块中的通用设置中的“最小颗粒尺寸”的设定值相同"]
[null,22,"显示图像标尺","选中，缩略图显示区中的图片显示标尺信息，非选中状态下，图片不显示标尺"]
[null,23,"显示颗轮廓","选中，缩略图显示区中的图片中的颗粒显示轮廓线，非选中状态下，颗粒不显示轮廓线"]
[null,24,"偏光/明场","缩略图显示的是偏光下的颗粒图片，还是明场下的颗粒图片。选择偏光则显示偏光的颗粒图片，明场则显示明场的颗粒图片"]
[null,25,"前一页","显示前一页颗粒图片"]
[null,26,"后一页","显示后一页颗粒图片"]
[null,27,"当前页/总页数","分页码显示，前面数字为当前所处页码，后一个数字为总页数。"]
[null,28,"颗粒数","检测中的颗粒中尺寸大于“最小颗粒尺寸”的颗粒数量。"]
[null,29,"颗粒分级表格","表格数据列包括：编号、颗粒类型、颗粒分级、最大卡规直径，最小卡规直径、颗粒面积、最大内切圆直径、最大灰度，平均灰度-明场、平均灰度-偏光、拉伸长度、明场偏光灰度差"]
[null,30,null,"数据来源于数据表ClassificationItem表"]
[null,31,"金属按钮","更改颗粒类型。将选中颗粒的颗粒更改为金属。"]
[null,32,"非金属按钮","更改颗粒类型。将选中颗粒的颗粒更改为非金属。"]
[null,33,"纤维按钮","更改颗粒类型。将选中颗粒的颗粒更改为纤维。"]
[null,34,"更改类型提示","弹出确认信息提示框：”请确定是否要将该颗粒类型更改为非金属？“，点【确定】完成类型更改"]
[null,35,"操作结果确认","更改类型下的按钮，与选择颗粒类型相同的，按钮为禁用状态，其它两个按钮正常"]
[null,36,null,"通过”颗粒类型“筛选修改前类型颗粒，确认操作颗粒不再显示于缩略图区域和分级信息表中"]
[null,37,null,"过”颗粒类型“筛选修改后类型颗粒，确认可以查看到操作颗粒的颗粒图片信息和分级信息表。且颗粒类型显示与操作相符"]
[null,38,null,"查看数据表Particle表，确认项目中所选择颗粒的类型值ParticleType由原来的类型值改为了新的颗粒值。1为金属颗粒，2为非金属颗粒，3为纤维颗粒"]
[null,39,"编辑颗粒按钮","弹出颗粒编辑界面"]
[null,40,"删除颗粒按钮","弹出确认信息提示框：”确定要将该颗粒删除吗？“，点【确定】完成删除操作，【取消】中止操作"]
[null,41,"操作结果确认","确认缩略图区域查看不到被删除的颗粒图片"]
[null,42,null,"确认界面中分页下方的的颗粒数值减少1个"]
[null,43,null,"确认颗粒分级表中查不到被删除的颗粒信息"]
[null,44,null,"确认数据表ClassificationItem表中查询不到对应的颗粒信息"]
[null,45,"高度测试按钮","默认检测图片来自“本地图片”或是“项目图库”时，按钮为不可用状态。只有图片来自“相机扫描”时为可用状态"]
[null,46,null,"图片来自“相机扫描”时，点击弹出“高度测量”界面"]
[null,47,"查看图片按钮","弹出“颗粒编辑界面”。只能修改“颗粒幅度”和视场，其它信息均为只读。"]
[null,48,"实时预览按钮","仅在图片来自“相机扫描”时，按钮为可用状态。其它情况均为禁用状态"]
[null,49,null,"点击弹出“实时预览”界面"]
[null,50,"重新计算按钮","编辑颗粒后，对颗粒进行重新计算。"]

{"sheet":"颗粒编辑","index":8,"n_rows":53,"n_cols":9,"rows_kept":53,"cut":false,"hidden":false,"merged":[[8,3,8,4],[3,3,3,4],[4,3,4,4],[5,3,5,4],[6,3,6,4],[7,3,7,4],[24,3,24,4],[9,3,9,4],[10,3,10,4],[11,3,11,4],[13,3,13,4],[14,3,14,4],[15,3,15,4],[12,3,12,4],[16,3,16,4],[18,3,18,4],[19,3,19,4],[21,3,21,4],[22,3,22,4],[37,3,37,4],[25,3,25,4],[26,3,26,4],[27,3,27,4],[29,3,29,4],[30,3,30,4],[31,3,31,4],[51,3,51,4],[52,3,52,4],[44,3,44,4],[45,3,45,4],[46,3,46,4],[47,3,47,4],[48,3,48,4],[49,3,49,4],[17,3,17,4],[28,3,28,4],[23,3,23,4],[20,3,20,4],[50,3,50,4],[38,3,38,4],[39,3,39,4],[40,3,40,4],[41,3,41,4],[42,3,42,4],[43,3,43,4],[32,3,32,4],[33,3,33,4],[34,3,34,4],[35,3,35,4],[36,3,36,4]]}
[]
[null,"模块","检测","画面","图库模式-颗粒编辑画面","用例数",{"$f":"COUNTA(D5:D66)","v":49},"BUG数",{"$f":"COUNTIF(H8:H41,\"否\")+COUNTIF(H8:H41,\"否→是\")","v":0}]
[]
[null,"序号","测试项","确认内容",null,"测试日期","测试者","是否通过","备注"]
[null,1,"颗粒编号","颗粒信息在Particle中有Id值"]
[null,2,"颗粒类型","颗粒信息在Particle中有ParticleType值，值为1是金属颗粒，2为非金属颗粒，3为纤维颗粒"]
[null,3,"最大卡规直径","颗粒的信息中FeretMax列的值"]
[null,4,"最小卡规直径","颗粒的信息中FeretMin列的值"]
[null,5,"颗粒高度","颗粒的高度。"]
[null,6,"图片预览","颗粒图片显示"]
[null,7,"分割按钮","将颗粒分割成多个颗粒。完成操作后点击【重新计算】"]
[null,8,"操作结果确认","确认数据库表Particle中颗粒总数增加1"]
[null,9,null,"确认预览区域预览到的操作结果与操作相一致"]
[null,10,null,"确认“分级模式”下，界面左上方位置 的“颗粒总数”增加1"]
[null,11,null,"确认缩略图区域查看不到分割前的颗粒图片"]
[null,12,null,"确认颗粒分级表格中查看不到分割前的颗粒图片"]
[null,13,null,"如果颗粒分割后两个颗粒满足大于“最小颗粒尺寸”设定值，确认缩略图区域可以查看到两个新的颗粒图片"]
[null,14,null,"确认原颗粒编号对应的颗粒数据变小"]
[null,15,"连接按钮","将两个或多个独立颗粒，连接为一个颗粒。完成操作后点击【重新计算】"]
[null,16,"操作结果确认","确认操作后颗粒形态变化，尺寸数据比原颗粒变大"]
[null,17,null,"确认预览区域预览到的操作结果与操作相一致"]
[null,18,null,"确认数据库表Particle中颗粒对应编号的颗粒数据有变化"]
[null,19,"增大按钮","扩大轮廓范围。完成操作后点击【重新计算】"]
[null,20,null,"确认预览区域预览到的操作结果与操作相一致"]
[null,21,null,"确认数据库表Particle中对应编号的颗粒数据变大"]
[null,22,null,"确认颗粒图片形态增大"]
[null,23,null,"确认颗粒分级信息表中颗粒对应的数据发生改变"]
[null,24,"缩小按钮","扣除部分轮廓范围。完成操作后点击【重新计算】"]
[null,25,null,"确认预览区域预览到的操作结果与操作相一致"]
[null,26,null,"确认数据库表Particle中对应编号的颗粒数据变小"]
[null,27,null,"确认颗粒图片形态变化"]
[null,28,null,"确认颗粒分级信息表中颗粒对应的数据发生改变"]
[null,29,"连续","选中状态下，点击【增大】或【缩小】按钮后，可连续进行多次操作。否则每操作一次需要点一次对应操作的按钮"]
[null,30,"复原按钮","对颗粒进行编辑操作后，点击可恢复颗粒到原始状态"]
[null,31,"操作结果确认","对颗粒进行分割等操作后，点击按钮，确认颗粒恢复到了没进行操作前的原始状态"]
[null,32,"撤销按钮","撤销上一次对颗粒的编辑操作。多次点击可以逐步撤销"]
[null,33,"操作结果确认","对颗粒进行分割等操作后，点击按钮，确认颗粒恢复到上一次操作前的状态"]
[null,34,null,"多次点击按钮，确认在预览区域，可以看到颗粒按操作顺序有序撤销对应操作的效果"]
[null,35,"重做按钮","对撤销的操作进行恢复，可连续执行"]
[null,36,"操作结果确认","确认此前被撤销的操作，重新被执行。"]
[null,37,null,"预览区域，确认执行过程的符合操作顺序"]
[null,38,null,"确认如果执行了多次撤销操作，通过点多次【重做】可以按操作顺序进行恢复。"]
[null,39,"偏光/明场","单选框。对预览区域的对应进行视场切换"]
[null,40,"操作结果确认","确认预览区域显示的图片与选定的视场相符"]
[null,41,"原图/编辑图","单选框。"]
[null,42,"操作结果确认","确认选择“原图”时预览区域中的图片不显示轮廓线。选择“编辑图”时，预览区域的图片显示轮廓线"]
[null,43,"颗粒幅度","颗粒点图片大小的比例。"]
[null,44,"操作结果确认","确认，修改设定值后，预览区域的颗粒大小不变，图片大小按设定值改变。设定值越大，图片越小"]
[null,45,"实时预览按钮","只在“相机扫描”情况下，该按钮为可用状态。其它情况均为禁用状态"]
[null,46,null,"只在“相机扫描”情况下，点击弹出“实时预览”界面"]
[null,47,"完成按钮","暂存对颗粒信息的编辑操作。在点击【重新计算】之前不会更新颗粒信息"]
[null,48,"操作结果确认","对颗粒进行编辑后，点【完成】，返回图库模式，查看颗粒图片及分级信息表。确认没有对颗粒信息进行改变"]
[null,49,null,"点击【重新计算】，确认界面有明显的刷新，操作的颗粒，图片及分级信息都有更新"]

{"sheet":"高度测试","index":9,"n_rows":0,"n_cols":0,"rows_kept":0,"cut":false,"hidden":false,"merged":[]}

{"sheet":"分级模式","index":10,"n_rows":39,"n_cols":9,"rows_kept":39,"cut":false,"hidden":false,"merged":[[8,3,8,4],[3,3,3,4],[4,3,4,4],[5,3,5,4],[6,3,6,4],[7,3,7,4],[9,3,9,4],[13,3,13,4],[15,3,15,4],[16,3,16,4],[17,3,17,4],[23,3,23,4],[24,3,24,4],[25,3,25,4],[26,3,26,4],[27,3,27,4],[34,3,34,4],[36,3,36,4],[37,3,37,4],[38,3,38,4],[28,3,28,4],[29,3,29,4],[31,3,31,4],[32,3,32,4],[33,3,33,4],[35,3,35,4],[30,3,30,4],[11,3,11,4],[10,3,10,4],[21,3,21,4],[22,3,22,4],[18,3,18,4],[12,3,12,4],[14,3,14,4],[20,3,20,4],[19,3,19,4]]}
[]
[null,"模块","检测","画面","分级模式画面","用例数",{"$f":"COUNTA(D5:D52)","v":35},"BUG数",{"$f":"COUNTIF(H8:H39,\"否\")+COUNTIF(H8:H39,\"否→是\")","v":0}]
[]
[null,"序号","测试项","确认内容",null,"测试日期","测试者","是否通过","备注"]
[null,1,"项目名称","只读。“检测信息录入”界面，输入的“项目名称”"]
[null,2,"项目编号","只读。系统根据执行检测时的日期自动生成。与“检测信息录入”界面的“项目编号”相同"]
[null,3,"部件名称","只读。与“检测信息录入”界面设置的的“部件名称”相同"]
[null,4,"零件编号","只读。与“检测信息录入”界面设置的的“部件编号”相同"]
[null,5,"特征参数","只读。与检测时选定规程中“分级设置”中的“使用参数”选定值相同。与图库模式中的默认排序字段一致"]
[null,6,"颗粒总数","默认初始状态下，执行检测完成后，识别出的全部颗粒的数量。"]
[null,7,null,"与界面下方的分级信息表中选定的当前颗粒类型相关联。如全部类型时，则为检测的所有颗粒总数，如果指定类型颗粒，则只是此类颗粒的数量"]
[null,8,"滤膜覆盖率","只读。系统自动计算"]
[null,9,null,"与界面下方的分级信息表中选定的当前颗粒类型相关联。如全部类型时，则为总的滤膜覆盖率，如果指定类型颗粒，则只是此类颗粒的滤膜覆盖率"]
[null,10,"清洁度编码","根据颗粒分级结果，按检测所使用规程“分级设置”中的“清洁度编码设置”的参数计算得出"]
[null,11,null,"与界面下方的分级信息表中选定的当前颗粒类型相关联。如全部类型时，则为总的清洁度编码，如果指定类型颗粒，则只是此类颗粒的清洁度编码"]
[null,12,"结果确认","确认格式与清洁度编码设置中格式相同"]
[null,13,null,"确认分级类型对应的数量，与清洁度编码设置中数量级别编码相对应"]
[null,14,"检测结果","项目的检测结果，“通过”或“未通过”。通过，以“绿色”背景显示，未通过显示为“红色”背景"]
[null,15,null,"检测结果的评定通过需要三种颗粒每一个分级的结果都通过，才算检测“通过”。否则为“不通过”"]
[null,16,"项目存档状态","“已存档”以“绿色”背景显示，“未存档”显示为“红色”背景"]
[null,17,"分级趋势图","柱图形式显示。横轴为“分级信息”，纵轴为“颗粒个数”"]
[null,18,null,"趋势图中的数据与界面下方的“分级信息表”选择的颗粒类型相对应。当前选择的颗粒类型，趋势图显示此类颗粒对应的数据，与表格数据相对应"]
[null,19,null,"柱状图中的每一个分级的颜色，与检测所选择规程“分级设置”中的“颜色”相同"]
[null,20,"分级信息表","Tab页形式显示全部颗粒信息、分类型颗粒信息"]
[null,21,null,"表格数据列包括：级别、>=、<、绝对数量，绝对数量（%）、每零件数量、单位面积（1000平方厘米）、单位体积（1000立方厘米），允许数量、清洁度等级、状态"]
[null,22,"级别","对应所选择规程“分级设置”中的“颗粒尺寸级别名称”"]
[null,23,">=","对应所选择规程“分级设置”中的“下边界”"]
[null,24,"<","对应所选择规程“分级设置”中的“上边界”"]
[null,25,"允许数量","对应所选择规程“分级设置”中的“上边界”"]
[null,26,"状态","检测所用规程中”分级设置“里的”允许数量使用的归一化参数“与列表中的”允许数量“进行对比，判断该分级颗粒状态是否通过。"]
[null,27,null,"如，”允许数量使用的归一化参数“选择的是“单位面积（1000平方厘米）”。每分级的“单位面积（1000平方厘米）”数据与“允许数量”对比，如果小于等于允许数量则认定为“通过”，否则为“不通过”"]
[null,28,null,"确认分级表中，是否存在与按上述规则不符的判定结果"]
[null,29,"绝对数量","实际检测出的颗粒数量"]
[null,30,"绝对数量（%）","公式：（每个分级颗粒数量/该类颗粒所有绝对数量之和）*100%。即该分级颗粒点此类颗粒总数的百分比数值"]
[null,31,"每零件数量","公式：绝对数量/零件数量。”零件数量“为检测信息录入时，输入的零件数量"]
[null,32,"单位体积（1000立方厘米）","公式：绝对数量 * 1000 / 零件面积。”零件面积“为检测信息录入时，输入的零件面积"]
[null,33,"清洁度等级","确认颗粒数量和等级编码是否满足对应所选规程中的“清洁度编号设置”中对应的级别编码的数量相符"]
[null,34,"操作结果确认","切换颗粒类型Tab页，确认表趋势图中的数据与当前表格中的数据一致"]
[null,35,null,"确认界面上方的，颗粒总数与趋势图中各类型颗粒数据之和相等"]